bitfinex/quotes_SOLUSD_20250414
["timestamp","ask_amount","ask_price","bid_price","bid_amount"]
[1744618025668,18.67233104,132.92,132.88,18.67233104]
[1744618025869,18.67233104,132.92,132.87,25.75233104]
[1744618026077,86.78414674,132.93,132.87,25.75233104]
[1744618026392,18.67233104,132.91,132.87,7.08]
[1744618026591,24.69193104,132.9,132.87,7.08]
[1744618026891,6.0196,132.9,132.87,7.08]
[1744618027190,24.69153104,132.91,132.87,7.08]
[1744618027810,18.67233104,132.9,132.87,7.08]
[1744618028588,6.0209,132.87,132.82,7.08]
[1744618028780,18.67233104,132.84,132.79,7.08]
[1744618028986,13.7754,132.87,132.79,7.08]
[1744618028987,18.67233104,132.82,132.79,7.08]
[1744618029199,18.67233104,132.81,132.79,7.08]
[1744618029491,18.67233104,132.82,132.77,24.69753104]
[1744618029689,99.43817778,132.83,132.78,18.67233104]
[1744618030087,105.46127778,132.83,132.78,18.67233104]
[1744618030398,80.76584674,132.83,132.79,18.67233104]
[1744618030698,88.52034674,132.87,132.82,18.67233104]
[1744618030903,99.43817778,132.87,132.83,18.67233104]
[1744618031071,99.43817778,132.87,132.82,18.67233104]
[1744618032076,24.69383104,132.86,132.81,18.67233104]
[1744618032273,18.67233104,132.86,132.81,18.67233104]
[1744618032581,18.67233104,132.86,132.82,18.67233104]
[1744618033372,18.67233104,132.86,132.81,18.67233104]
[1744618033573,80.76584674,132.87,132.83,18.67233104]
[1744618034183,80.76584674,132.87,132.84,24.69453104]
[1744618034508,80.76584674,132.87,132.85,18.67233104]
[1744618034678,0.03,132.89,132.86,18.67233104]
[1744618034880,0.03,132.89,132.88,18.67233104]
[1744618035477,80.79584674,132.97,132.89,0.14216157]
[1744618035700,80.79584674,132.97,132.95,18.67233104]
[1744618036005,0.03,132.97,132.95,18.67233104]
[1744618036179,0.03,132.97,132.96,18.67233104]
[1744618036377,0.03,132.97,132.96,43.64578522]
[1744618036573,8.6790262,133.04,132.96,62.43759565]
[1744618036574,2.6658262,133.04,132.96,62.43759565]
[1744618036782,2.6658262,133.04,133.03,18.67233104]
[1744618036987,2.6658262,133.04,133.03,25.75233104]
[1744618037299,11.83860541,133.08,133.04,0.42648471]
[1744618037469,11.83860541,133.08,133.07,18.67233104]
[1744618037678,6.0086,133.15,133.07,18.67233104]
[1744618037679,18.67233104,133.13,133.07,18.67233104]
[1744618037881,11.83860541,133.15,133.08,18.67233104]
[1744618038101,18.67233104,133.12,133.07,18.67233104]
[1744618038600,6.0093,133.13,132.99,6.0154]
[1744618038601,18.67233104,133.08,132.99,6.0154]
[1744618038798,18.67233104,133.0,132.95,25.75233104]
[1744618039097,18.67233104,132.96,132.88,7.08]
[1744618039296,27.45420819,132.96,132.91,27.45420819]
[1744618039680,27.45420819,132.96,132.89,0.28432314]
[1744618039902,27.45420819,132.96,132.88,13.38472314]
[1744618039903,27.45420819,132.96,132.88,13.1004]
[1744618040083,27.45420819,132.95,132.9,27.45420819]
[1744618040503,27.45420819,132.96,132.91,27.45420819]
[1744618040802,27.45420819,132.93,132.88,34.53420819]
[1744618041099,27.45420819,132.91,132.85,7.08]
[1744618041301,27.45420819,132.89,132.85,7.08]
[1744618041613,27.45420819,132.92,132.87,27.45420819]
[1744618042125,27.45420819,132.9,132.86,45.95478985]
[1744618042422,53.45420819,132.87,132.86,45.95478985]
[1744618042698,12.5273,132.89,132.86,45.95478985]
[1744618042899,6.0319,132.94,132.86,79.43029804]
[1744618043082,27.45420819,132.88,132.84,27.45420819]
[1744618043409,27.45420819,132.85,132.82,7.08]
[1744618043705,27.45420819,132.83,132.78,7.08]
[1744618043889,27.45420819,132.81,132.77,34.53420819]
[1744618044084,27.45420819,132.8,132.77,7.08]
[1744618044724,27.45420819,132.82,132.77,40.55950819]
[1744618044883,27.45420819,132.83,132.79,27.45420819]
[1744618045196,27.45420819,132.81,132.77,34.53420819]
[1744618045400,27.45420819,132.82,132.77,7.08]
[1744618045699,27.45420819,132.81,132.77,7.08]
[1744618047099,27.45420819,132.84,132.73,251.07174075]
[1744618047100,34.53420819,132.84,132.73,9.85864075]
[1744618047306,7.08,132.84,132.76,27.45420819]
[1744618047487,27.45420819,132.81,132.76,27.45420819]
[1744618047682,27.45420819,132.82,132.77,27.45420819]
[1744618048599,27.45420819,132.85,132.8,27.45420819]
[1744618048793,27.45420819,132.84,132.8,27.45420819]
[1744618048986,6.0209,132.87,132.8,27.45420819]
[1744618049192,6.0209,132.87,132.81,27.45420819]
[1744618049193,27.45420819,132.86,132.81,27.45420819]
[1744618049400,7.08,132.88,132.82,27.45420819]
[1744618049591,27.45420819,132.86,132.82,27.45420819]
[1744618049795,27.45420819,132.84,132.79,40.55870819]
[1744618050180,27.45420819,132.86,132.81,27.45420819]
[1744618050381,40.55470819,132.88,132.83,27.45420819]
[1744618050599,33.47470819,132.88,132.83,27.45420819]
[1744618051412,27.45420819,132.87,132.82,27.45420819]
[1744618052389,27.45420819,132.89,132.84,27.45420819]
[1744618052586,27.45420819,132.88,132.82,27.45420819]
[1744618052791,27.45420819,132.87,132.82,27.45420819]
[1744618053214,27.45420819,132.88,132.83,27.45420819]
[1744618053809,27.45420819,132.87,132.82,27.45420819]
[1744618054497,28.74607599,132.87,132.82,33.47720819]
[1744618055509,1.2918678,132.87,132.82,33.47720819]
[1744618056611,28.74607599,132.87,132.82,33.47720819]
[1744618057404,34.76697599,132.87,132.82,27.45420819]
[1744618058114,28.74607599,132.87,132.82,33.47730819]
[1744618059113,28.74607599,132.87,132.79,7.36432314]
[1744618059114,34.76697599,132.87,132.79,7.08]
[1744618059321,27.45420819,132.82,132.79,7.08]
[1744618059618,27.45420819,132.84,132.79,40.55870819]
[1744618059919,27.45420819,132.83,132.79,13.1045]
[1744618060118,27.45420819,132.83,132.79,7.08]
[1744618060316,27.45420819,132.83,132.79,13.1044]
[1744618060516,80.76584674,132.86,132.81,27.45420819]
[1744618060706,108.22005493,132.86,132.81,27.45420819]
[1744618061214,27.45420819,132.85,132.8,27.45420819]
[1744618061598,86.78714674,132.86,132.8,33.47810819]
[1744618061800,27.45420819,132.85,132.8,33.47810819]
[1744618062218,86.78714674,132.86,132.79,7.08]
[1744618062219,27.45420819,132.84,132.79,34.53420819]
[1744618062424,27.45420819,132.81,132.76,6.0888]
[1744618062603,27.45420819,132.81,132.76,33.54300819]
[1744618062800,86.78714674,132.86,132.8,27.45420819]
[1744618063016,27.45420819,132.85,132.8,27.45420819]
[1744618063621,80.76584674,132.86,132.81,27.45420819]
[1744618063818,86.78724674,132.86,132.81,27.45420819]
[1744618064123,114.24145493,132.86,132.81,27.45420819]
[1744618064704,114.24145493,132.86,132.8,40.55800819]
[1744618065127,105.40145564,132.86,132.8,31.7180089]
[1744618066427,99.38005564,132.86,132.81,24.6377089]
[1744618067325,80.76584674,132.86,132.81,24.6377089]
[1744618067530,99.38005564,132.86,132.81,24.6377089]
[1744618067829,105.40135564,132.86,132.81,6.0235]
[1744618068020,105.40135564,132.86,132.81,24.6377089]
[1744618068219,18.6142089,132.85,132.81,6.0235]
[1744618068437,24.6361089,132.85,132.8,13.104]
[1744618068720,18.6142089,132.85,132.8,31.7182089]
[1744618069131,105.40155564,132.86,132.8,31.7182089]
[1744618069339,18.6142089,132.85,132.8,7.08]
[1744618069511,18.6142089,132.84,132.8,7.08]
[1744618070430,18.6142089,132.84,132.8,13.104]
[1744618071445,25.9278767,132.85,132.8,13.104]
[1744618071731,25.9278767,132.85,132.8,7.08]
[1744618072030,18.6142089,132.81,132.77,6.0251]
[1744618072243,18.6142089,132.82,132.77,24.6393089]
[1744618073635,18.6142089,132.79,132.76,7.143]
[1744618074015,18.6142089,132.78,132.76,7.143]
[1744618074423,80.76584674,132.82,132.76,7.143]
[1744618074624,80.76584674,132.81,132.76,7.143]
[1744618074824,80.76584674,132.81,132.77,18.6142089]
[1744618075216,18.6142089,132.84,132.79,18.6142089]
[1744618075411,24.6365089,132.84,132.79,18.6142089]
[1744618075642,18.6142089,132.84,132.79,18.6142089]
[1744618076642,88.07971454,132.85,132.8,24.6380089]
[1744618076850,106.69392344,132.85,132.8,24.6380089]
[1744618077146,18.6142089,132.84,132.79,24.6385089]
[1744618077732,18.6142089,132.83,132.77,6.0254]
[1744618077929,18.6142089,132.82,132.77,24.6396089]
[1744618078340,18.6142089,132.83,132.78,18.6142089]
[1744618078743,18.6142089,132.83,132.79,6.0245]
[1744618079040,18.6142089,132.82,132.77,18.6142089]
[1744618079654,18.6142089,132.81,132.76,7.143]
[1744618079860,18.6142089,132.8,132.76,13.1687]
[1744618080226,18.6142089,132.81,132.76,31.7829089]
[1744618081475,18.6142089,132.77,132.76,0.063]
[1744618081759,18.6142089,132.79,132.76,0.063]
[1744618081927,18.6142089,132.8,132.76,6.0886]
[1744618082249,99.38005564,132.81,132.76,24.7028089]
[1744618082446,80.76584674,132.81,132.78,18.6142089]
[1744618082646,80.76584674,132.81,132.77,18.6142089]
[1744618083057,105.40365564,132.81,132.76,18.6772089]
[1744618083262,18.6142089,132.79,132.76,0.063]
[1744618084645,19.9060767,132.79,132.76,0.063]
[1744618085266,25.9305767,132.79,132.76,0.063]
[1744618085669,18.6142089,132.78,132.76,0.063]
[1744618085847,99.38005564,132.77,132.76,0.063]
[1744618086053,101.69181043,132.76,132.73,0.063]
[1744618086258,24.6410089,132.74,132.73,0.063]
[1744618092072,25.1768089,132.78,132.73,0.063]
[1744618092253,25.1768089,132.78,132.73,18.6772089]
[1744618092254,18.6142089,132.78,132.73,18.6772089]
[1744618092455,26.9860767,132.79,132.74,18.6142089]
[1744618092662,1.2918678,132.79,132.75,18.6142089]
[1744618093248,1.2918678,132.79,132.77,18.6142089]
[1744618093445,1.2918678,132.79,132.76,18.6142089]
[1744618094558,1.2918678,132.79,132.77,18.6142089]
[1744618094956,18.6142089,132.78,132.73,18.6772089]
[1744618095159,18.6142089,132.76,132.73,0.063]
[1744618095363,18.6142089,132.75,132.73,0.063]
[1744618095549,18.6142089,132.77,132.73,0.063]
[1744618095751,7.3165678,132.79,132.75,18.6142089]
[1744618095752,1.2918678,132.79,132.75,18.6142089]
[1744618095984,1.2918678,132.79,132.76,18.6142089]
[1744618096570,1.2918678,132.79,132.75,18.6142089]
[1744618097070,25.9306767,132.79,132.74,18.6142089]
[1744618097367,25.9306767,132.79,132.75,18.6142089]
[1744618097549,25.9306767,132.79,132.74,18.6142089]
[1744618097950,25.9306767,132.79,132.75,18.6142089]
[1744618098149,19.9060767,132.79,132.75,18.6142089]
[1744618099549,1.2918678,132.79,132.75,18.6142089]
[1744618099990,25.9306767,132.79,132.75,18.6142089]
[1744618100285,19.9060767,132.79,132.74,24.6405089]
[1744618100448,1.2918678,132.79,132.75,18.6142089]
[1744618100649,25.9306767,132.79,132.74,24.6405089]
[1744618101162,1.2918678,132.79,132.75,18.6142089]
[1744618101561,1.2918678,132.79,132.74,6.0263]
[1744618101760,1.2918678,132.79,132.75,18.6142089]
[1744618102671,1.2918678,132.79,132.75,24.6401089]
[1744618104794,1.2918678,132.79,132.77,18.6142089]
[1744618104958,1.2918678,132.79,132.78,18.6142089]
[1744618105460,1.2918678,132.79,132.75,24.6401089]
[1744618107158,19.9060767,132.79,132.75,6.0259]
[1744618107881,1.2918678,132.79,132.75,24.6401089]
[1744618108547,19.9060767,132.79,132.75,6.0259]
[1744618108753,18.6142089,132.78,132.75,7.24]
[1744618109052,18.6142089,132.77,132.75,7.24]
[1744618109374,101.5142089,132.76,132.73,0.063]
[1744618109557,18.6142089,132.74,132.73,0.063]
[1744618112081,82.9,132.76,132.73,0.063]
[1744618112259,18.6142089,132.74,132.73,0.063]
[1744618113079,24.6410089,132.74,132.73,0.063]
[1744618114850,18.6142089,132.74,132.73,0.063]
[1744618115884,24.6410089,132.74,132.73,0.063]
[1744618117468,18.64964886,132.73,132.72,0.063]
[1744618117664,55.87806666,132.73,132.72,0.063]
[1744618118073,37.26385776,132.73,132.72,0.063]
[1744618118280,18.6142089,132.73,132.72,0.063]
[1744618119497,24.6414089,132.73,132.72,0.063]
[1744618119995,43.29105776,132.73,132.72,0.063]
[1744618120364,61.90526666,132.73,132.72,0.063]
[1744618120962,43.29105776,132.73,132.72,0.063]
[1744618121676,61.90526666,132.73,132.72,0.063]
[1744618122490,62.33175137,132.73,132.72,0.063]
[1744618122888,26.0,132.71,132.7,0.063]
[1744618123092,63.26385776,132.71,132.7,0.063]
[1744618124164,79.99196168,132.71,132.7,0.063]
[1744618124368,18.6142089,132.69,132.68,0.063]
[1744618124694,37.26385776,132.69,132.68,0.063]
[1744618125201,36.34445124,132.69,132.68,0.063]
[1744618127474,17.69480238,132.69,132.68,0.063]
[1744618128392,18.12128709,132.69,132.68,0.063]
[1744618129380,18.12128709,132.69,132.65,0.063]
[1744618129381,74.43813833,132.66,132.65,0.063]
[1744618129576,55.36200476,132.66,132.64,0.063]
[1744618129783,94.56580238,132.65,132.64,0.063]
[1744618130382,30.74193595,132.65,132.64,0.0001]
[1744618130577,44.64964886,132.61,132.6,0.063]
[1744618130785,67.98125362,132.61,132.6,0.063]
[1744618130977,37.66580238,132.61,132.6,0.063]
[1744618131522,43.69850238,132.61,132.6,0.063]
[1744618131995,62.34815124,132.61,132.6,0.063]
[1744618135397,74.01395362,132.61,132.6,0.063]
[1744618135896,18.79181043,132.6,132.58,0.063]
[1744618136096,11.66580238,132.59,132.58,0.063]
[1744618136676,17.69940238,132.59,132.58,0.063]
[1744618137282,36.77553595,132.59,132.58,0.063]
[1744618137676,36.34905124,132.59,132.58,0.063]
[1744618137871,17.69940238,132.59,132.58,0.063]
[1744618141586,24.95940238,132.59,132.58,0.063]
[1744618143499,0.28432314,132.57,132.55,0.063]
[1744618143698,30.74193595,132.57,132.55,0.063]
[1744618144200,18.64964886,132.56,132.55,0.063]
[1744618144401,65.01773833,132.57,132.54,0.063]
[1744618144402,42.40773833,132.55,132.54,0.063]
[1744618145483,36.35085124,132.55,132.54,0.063]
[1744618147494,48.44313833,132.55,132.54,0.063]
[1744618147694,101.54964886,132.54,132.52,0.063]
[1744618147891,94.56580238,132.53,132.52,0.063]
[1744618148998,100.60210238,132.53,132.52,0.063]
[1744618149813,94.56580238,132.53,132.52,0.063]
[1744618150110,100.60210238,132.53,132.52,0.063]
[1744618151013,94.56580238,132.53,132.52,0.063]
[1744618152603,82.9,132.53,132.52,0.063]
[1744618152804,94.56580238,132.53,132.52,0.063]
[1744618153594,100.60210238,132.53,132.52,0.063]
[1744618153808,94.56580238,132.53,132.52,0.063]
[1744618154606,82.9,132.53,132.52,0.063]
[1744618155294,82.9,132.58,132.52,11.72880238]
[1744618155493,82.9,132.58,132.55,11.66580238]
[1744618155911,94.56580238,132.58,132.52,0.063]
[1744618156119,11.66580238,132.56,132.52,0.063]
[1744618156411,11.66580238,132.56,132.52,11.72880238]
[1744618156613,11.66580238,132.57,132.52,11.72880238]
[1744618156991,88.9341,132.58,132.52,11.72880238]
[1744618156992,94.56580238,132.58,132.54,6.0359]
[1744618157302,82.9,132.58,132.54,17.70170238]
[1744618157814,94.56580238,132.58,132.54,17.70170238]
[1744618157991,11.66580238,132.57,132.53,17.70190238]
[1744618158405,11.66580238,132.57,132.53,6.0361]
[1744618158604,94.56580238,132.58,132.53,17.70190238]
[1744618159192,94.56580238,132.58,132.53,6.0361]
[1744618159394,94.56580238,132.58,132.53,17.70190238]
[1744618159813,94.56580238,132.58,132.54,11.66580238]
[1744618160015,82.9,132.58,132.54,11.66580238]
[1744618160315,94.56580238,132.58,132.54,11.66580238]
[1744618160613,94.56580238,132.58,132.53,17.70190238]
[1744618160992,11.66580238,132.54,132.52,0.063]
[1744618161212,17.70210238,132.53,132.52,0.063]
[1744618161408,36.35175124,132.53,132.52,0.063]
[1744618164914,36.49391281,132.53,132.52,0.063]
[1744618165118,36.77823595,132.53,132.52,0.063]
[1744618166816,36.35175124,132.53,132.52,0.063]
[1744618167002,11.66580238,132.53,132.52,0.063]
[1744618167324,11.66580238,132.54,132.52,0.063]
[1744618167522,17.70090238,132.56,132.52,0.063]
[1744618167699,11.66580238,132.59,132.54,11.66580238]
[1744618168115,11.66580238,132.57,132.52,11.72880238]
[1744618168321,11.66580238,132.56,132.52,11.72880238]
[1744618168517,11.66580238,132.57,132.52,11.72880238]
[1744618168906,11.66580238,132.57,132.52,17.76540238]
[1744618169101,17.70040238,132.57,132.52,17.76540238]
[1744618169625,11.66580238,132.57,132.52,17.76540238]
[1744618169823,11.66580238,132.57,132.53,11.66580238]
[1744618171607,11.66580238,132.57,132.53,17.70210238]
[1744618171911,100.59940238,132.59,132.54,11.66580238]
[1744618174027,11.66580238,132.58,132.53,11.66580238]
[1744618174324,11.66580238,132.57,132.52,17.76530238]
[1744618174526,11.66580238,132.57,132.52,6.0995]
[1744618174714,11.66580238,132.57,132.52,17.76530238]
[1744618174904,17.70050238,132.57,132.52,17.76530238]
[1744618175611,11.66580238,132.57,132.53,11.66580238]
[1744618175824,82.9,132.59,132.55,11.66580238]
[1744618176331,94.56580238,132.59,132.55,11.66580238]
[1744618176928,11.66580238,132.57,132.52,17.76530238]
[1744618177926,11.66580238,132.57,132.53,11.66580238]
[1744618178230,17.70020238,132.58,132.53,11.66580238]
[1744618179430,17.70020238,132.58,132.53,17.70180238]
[1744618179627,94.56580238,132.59,132.54,11.66580238]
[1744618179827,11.66580238,132.62,132.58,11.66580238]
[1744618180028,94.56580238,132.63,132.58,11.66580238]
[1744618180222,94.56580238,132.63,132.55,0.28432314]
[1744618180223,11.66580238,132.62,132.57,11.66580238]
[1744618180811,17.69820238,132.62,132.57,17.70020238]
[1744618182432,88.932,132.63,132.59,11.66580238]
[1744618183136,82.9,132.63,132.59,11.66580238]
[1744618183641,7.19,132.65,132.61,11.66580238]
[1744618183836,0.03,132.65,132.62,11.66580238]
[1744618184015,0.03,132.65,132.63,11.66580238]
[1744618184813,0.03,132.65,132.63,17.69750238]
[1744618186134,0.03,132.65,132.63,11.66580238]
[1744618186337,0.03,132.65,132.63,17.69750238]
[1744618187038,0.03,132.65,132.63,11.66580238]
[1744618190318,11.69580238,132.65,132.6,11.66580238]
[1744618190616,11.66580238,132.61,132.57,6.458]
[1744618190825,11.66580238,132.61,132.56,17.70040238]
[1744618191042,17.69890238,132.61,132.56,11.66580238]
[1744618191347,11.66580238,132.59,132.54,32.88600238]
[1744618191919,11.66580238,132.59,132.54,19.75030238]
[1744618192140,11.66580238,132.57,132.53,11.66580238]
[1744618192440,11.66580238,132.6,132.55,11.66580238]
[1744618192823,11.66580238,132.59,132.54,11.66580238]
[1744618193025,11.66580238,132.58,132.54,11.66580238]
[1744618193242,11.66580238,132.57,132.53,11.66580238]
[1744618193431,17.69960238,132.59,132.54,11.66580238]
[1744618194146,6.0338,132.59,132.55,11.66580238]
[1744618195440,17.69960238,132.59,132.54,11.66580238]
[1744618195935,17.69910238,132.6,132.55,11.66580238]
[1744618197229,17.69910238,132.6,132.55,17.70120238]
[1744618197849,11.66580238,132.61,132.56,11.66580238]
[1744618198050,11.66580238,132.62,132.57,11.66580238]
[1744618198237,11.66580238,132.61,132.56,11.66580238]
[1744618199326,6.0331,132.6,132.56,11.66580238]
[1744618199750,6.0318,132.63,132.58,11.66580238]
[1744618200046,17.69760238,132.63,132.58,11.66580238]
[1744618200441,11.66580238,132.62,132.56,6.5908]
[1744618200747,11.66580238,132.59,132.54,11.66580238]
[1744618201051,11.66580238,132.58,132.53,24.29280238]
[1744618201253,17.69960238,132.59,132.54,11.66580238]
[1744618202248,11.66580238,132.57,132.52,11.72880238]
[1744618202431,11.66580238,132.56,132.52,0.063]
[1744618203038,82.9,132.58,132.53,11.66580238]
[1744618203236,17.69960238,132.59,132.55,11.66580238]
[1744618203439,11.66580238,132.56,132.52,0.063]
[1744618203638,11.66580238,132.54,132.52,0.063]
[1744618204364,11.66580238,132.53,132.52,0.063]
[1744618204859,82.9,132.55,132.52,0.063]
[1744618205035,94.56580238,132.55,132.52,0.063]
[1744618205231,11.66580238,132.54,132.52,0.063]
[1744618205433,17.70190238,132.54,132.52,0.063]
[1744618207646,6.0361,132.54,132.52,0.063]
[1744618208641,17.70190238,132.54,132.52,0.063]
[1744618210057,11.66580238,132.54,132.52,0.063]
[1744618210249,17.70200238,132.54,132.52,0.063]
[1744618210455,11.66580238,132.53,132.52,0.063]
[1744618211257,82.9,132.55,132.52,0.063]
[1744618211258,100.60130238,132.55,132.52,0.063]
[1744618211561,11.66580238,132.54,132.52,0.063]
[1744618212859,11.66580238,132.53,132.52,0.063]
[1744618214949,17.70210238,132.53,132.52,0.063]
[1744618220542,36.35175124,132.53,132.52,0.063]
[1744618220941,36.35175124,132.53,132.5,0.0001]
[1744618220942,41.25964886,132.51,132.5,0.0001]
[1744618221162,60.02545124,132.51,132.5,0.0001]
[1744618221770,37.69977438,132.51,132.5,0.0001]
[1744618222041,37.84193595,132.51,132.5,0.0001]
[1744618222266,37.41545124,132.51,132.5,0.0001]
[1744618223051,43.45265124,132.51,132.5,0.0001]
[1744618224968,36.35265124,132.51,132.5,0.0001]
[1744618225970,88.9369,132.52,132.5,0.0001]
[1744618226369,100.60270238,132.52,132.5,0.0001]
[1744618227677,11.66580238,132.51,132.5,0.0001]
[1744618228479,17.70300238,132.51,132.5,0.0001]
[1744618228975,100.60270238,132.52,132.5,0.0001]
[1744618229283,82.9,132.52,132.5,0.0001]
[1744618229778,100.60270238,132.52,132.5,0.0001]
[1744618231059,11.66580238,132.51,132.5,0.0001]
[1744618231265,113.21545124,132.51,132.5,0.0001]
[1744618233176,119.25265124,132.51,132.5,0.0001]
[1744618234377,36.77913595,132.51,132.5,0.0001]
[1744618236179,36.35265124,132.51,132.5,0.0001]
[1744618236366,44.64964886,132.47,132.46,0.063]
[1744618236671,44.76580238,132.47,132.46,0.063]
[1744618237471,11.66580238,132.5,132.46,0.063]
[1744618237674,17.70300238,132.51,132.46,11.72880238]
[1744618237868,17.70300238,132.51,132.47,11.66580238]
[1744618238174,17.70270238,132.52,132.47,11.66580238]
[1744618238369,17.70270238,132.52,132.47,17.70480238]
[1744618238577,17.70270238,132.52,132.48,11.66580238]
[1744618238960,11.66580238,132.55,132.5,11.66580238]
[1744618239157,7.1,132.57,132.53,11.66580238]
[1744618239876,18.76580238,132.57,132.52,11.66580238]
[1744618240277,24.80050238,132.57,132.52,17.70260238]
[1744618240459,82.9,132.57,132.53,11.66580238]
[1744618241163,88.9345,132.57,132.53,11.66580238]
[1744618241473,100.60030238,132.57,132.53,11.66580238]
[1744618244480,88.9345,132.57,132.53,11.66580238]
[1744618245179,11.66580238,132.54,132.5,11.66580238]
[1744618245369,11.66580238,132.54,132.49,11.66580238]
[1744618245772,11.66580238,132.54,132.5,11.66580238]
[1744618246267,11.66580238,132.55,132.5,11.66580238]
[1744618246471,17.70170238,132.54,132.5,11.66580238]
[1744618246675,17.70140238,132.55,132.5,11.66580238]
[1744618248475,11.66580238,132.53,132.48,17.81070238]
[1744618248688,17.70230238,132.53,132.48,17.81070238]
[1744618248888,6.0365,132.53,132.49,11.66580238]
[1744618253790,17.70230238,132.53,132.49,11.66580238]
[1744618254112,17.70230238,132.53,132.48,11.66580238]
[1744618255591,11.66580238,132.52,132.47,11.66580238]
[1744618255781,94.56580238,132.52,132.48,11.66580238]
[1744618255981,82.9,132.52,132.48,11.66580238]
[1744618257172,100.60300238,132.52,132.48,11.66580238]
[1744618258287,100.60300238,132.52,132.47,11.66580238]
[1744618258481,100.60300238,132.52,132.48,11.66580238]
[1744618260200,88.9372,132.52,132.49,11.66580238]
[1744618261494,82.9,132.52,132.49,11.66580238]
[1744618261695,82.9,132.56,132.51,11.66580238]
[1744618261894,82.9,132.56,132.53,11.66580238]
[1744618262292,82.9,132.56,132.5,0.28432314]
[1744618262293,82.9,132.56,132.54,11.66580238]
[1744618262592,14.6573,132.58,132.54,11.66580238]
[1744618263307,100.59950238,132.59,132.54,11.66580238]
[1744618263512,82.9,132.59,132.55,11.66580238]
[1744618263705,88.9337,132.59,132.55,11.66580238]
[1744618264898,100.59950238,132.59,132.55,11.66580238]
[1744618266211,100.59950238,132.59,132.54,11.66580238]
[1744618268605,100.59950238,132.59,132.52,11.66580238]
[1744618268606,11.66580238,132.57,132.52,11.66580238]
[1744618268907,11.66580238,132.56,132.51,7.8665]
[1744618269224,11.66580238,132.52,132.47,11.66580238]
[1744618269387,11.66580238,132.5,132.46,0.063]
[1744618269895,11.66580238,132.49,132.46,0.063]
[1744618270099,11.66580238,132.47,132.46,0.063]
[1744618270501,17.70490238,132.47,132.46,0.063]
[1744618270700,11.66580238,132.48,132.46,0.063]
[1744618271093,94.56580238,132.49,132.46,0.063]
[1744618271291,82.9,132.49,132.46,0.063]
[1744618271495,82.9,132.49,132.46,11.72880238]
[1744618271695,82.9,132.49,132.46,0.063]
[1744618272096,94.56580238,132.49,132.46,0.063]
[1744618273619,11.66580238,132.51,132.46,0.063]
[1744618273828,11.66580238,132.51,132.47,11.66580238]
[1744618274014,11.66580238,132.5,132.46,0.063]
[1744618274318,6.0374,132.51,132.46,11.72880238]
[1744618274319,11.66580238,132.51,132.46,11.72880238]
[1744618274496,11.66580238,132.52,132.47,11.66580238]
[1744618275410,11.66580238,132.52,132.47,17.70470238]
[1744618276712,17.70260238,132.52,132.47,17.70470238]
[1744618277326,101.66580238,132.53,132.48,11.66580238]
[1744618277515,101.66580238,132.53,132.5,11.66580238]
[1744618277516,82.9,132.53,132.5,11.66580238]
[1744618277819,0.03,132.6,132.53,0.42648471]
[1744618278028,0.03,132.6,132.57,11.66580238]
[1744618279224,0.03,132.6,132.59,11.66580238]
[1744618279516,0.03,132.6,132.59,17.69940238]
[1744618279997,0.03,132.6,132.59,11.66580238]
[1744618284222,0.03,132.6,132.59,17.69940238]
[1744618284418,0.03,132.6,132.59,11.66580238]
[1744618285205,0.03,132.6,132.58,11.66580238]
[1744618286611,0.03,132.6,132.57,11.66580238]
[1744618287001,0.03,132.6,132.59,11.66580238]
[1744618287622,0.03,132.6,132.58,11.66580238]
[1744618288212,0.03,132.6,132.59,11.66580238]
[1744618289714,0.03,132.6,132.58,11.66580238]
[1744618292622,0.03,132.6,132.59,11.66580238]
[1744618294326,0.03,132.6,132.58,11.66580238]
[1744618294704,0.03,132.6,132.59,11.66580238]
[1744618296829,0.03,132.6,132.58,11.66580238]
[1744618298607,0.03,132.6,132.57,11.66580238]
[1744618300434,0.03,132.6,132.58,11.66580238]
[1744618302820,18.64964886,132.57,132.49,12.6401]
[1744618303131,94.56580238,132.56,132.51,11.66580238]
[1744618303348,82.9,132.56,132.53,11.66580238]
[1744618304435,100.60090238,132.56,132.52,11.66580238]
[1744618304838,100.60090238,132.56,132.51,11.66580238]
[1744618305541,6.0359,132.54,132.5,11.66580238]
[1744618306336,6.0359,132.54,132.51,11.66580238]
[1744618306839,6.0359,132.54,132.5,11.66580238]